[Event "15th Arad Open 2022"]
[Site "Arad"]
[Date "2022.08.09"]
[Round "2.6"]
[White "Ungureanu, Sandu"]
[Black "Stanciu, Alexandru-Ovidiu"]
[Result "0-1"]
[ECO "A37"]
[WhiteElo "2011"]
[BlackElo "2326"]
[Annotator "RC"]
[PlyCount "92"]
[EventDate "2022.08.08"]
[EventType "swiss"]
[EventCountry "ROU"]
[SourceTitle "playchess.com"]
[Source "ChessBase"]
[SourceQuality "1"]
[TimeControl "5400+30"]

1. g3 {[%emt 1:31:00]} c5 {[%emt 0:10:33]} 2. Bg2 {[%emt 0:00:00]} Nc6 {[%emt 0:00:09]} 3. c4 {[%emt 0:00:00]} g6 {[%emt 0:00:21]} 4. Nf3 {[%emt 0:00:00]} Bg7 {[%emt 0:00:07]} 5. O-O {[%emt 0:00:00]} d6 {[%emt 0:00:31]} 6. Nc3 {[%emt 0:00:00]} e5 {[%emt 0:03:19]} 7. e4 {[%emt 0:00:00]} Nge7 {[%emt 0:00:21]} 8. d3 {[%emt 0:00:00]} O-O {[%emt 0:00:32]} 9. Nd5 {[%emt 0:00:00]} h6 {[%emt 0:01:38]} 10. Ne1 {[%emt 0:00:00]} f5 {[%emt 0:00:37]} 11. f4 {[%emt 0:00:00]} exf4 {[%emt 1:17:52]} 12. gxf4 {[%emt 0:00:00]} Nd4 {[%emt 0:00:00]} 13. Nc2 {[%emt 0:00:00]} Nxd5 {[%emt 0:00:00]} 14. exd5 {[%emt 0:00:00]} Re8 {[%emt 0:00:00]} 15. Nxd4 Bxd4+ {[%emt 0:00:00]} 16. Kh1 {[%emt 0:00:00]} Bd7 {[%emt 0:00:00]} 17. Qc2 {[%emt 0:00:00]} b5 {[%emt 0:00:00]} 18. Bd2 {[%emt 0:00:00]} Qf6 {[%emt 0:00:00]} 19. cxb5 {[%emt 0:00:00]} Bxb5 {[%emt 0:00:00]} 20. Rae1 {[%emt 0:00:00]} Bd7 {[%emt 0:00:00]} 21. Bc3 {[%emt 0:00:00]} Rab8 {[%emt 0:00:00]} 22. Qd2 {[%emt 0:00:00]} Rb7 {[%emt 0:00:00]} 23. Rxe8+ {[%emt 0:00:00]} Bxe8 {[%emt 0:00:00]} 24. Re1 {[%emt 0:00:00]} Bf7 {[%emt 0:00:00]} 25. h3 {[%emt 0:00:00]} Kg7 {[%emt 0:00:00]} 26. Re2 {[%emt 0:00:00]} Kh7 {[%emt 0:00:00]} 27. Qe1 {[%emt 0:00:00]} Kg8 {[%emt 0:00:00]} 28. Qd2 {[%emt 0:00:00]} Kf8 {[%emt 0:00:00]} 29. Qc2 {[%emt 0:00:00]} Bxc3 {[%emt 0:01:34]} 30. Qxc3 {[%emt 0:00:00]} Qxc3 {[%emt 0:05:24]} 31. bxc3 {[%emt 0:00:00]} Rb1+ {[%emt 0:00:03]} 32. Kh2 {[%emt 0:00:00]} a5 {[%emt 0:02:35]} 33. d4 {[%emt 0:00:00]} c4 {[%emt 0:00:16]} 34. Kg3 {[%emt 0:00:00]} a4 {[%emt 0:00:40]} 35. Kf2 {[%emt 0:00:00]} a3 {[%emt 0:00:14]} 36. Ke3 {[%emt 0:00:00]} Rc1 {[%emt 0:00:54]} 37. Kd2 {[%emt 0:00:00]} Ra1 {[%emt 0:00:02]} 38. Ke3 {[%emt 0:00:00]} Ke7 {[%emt 0:00:18]} 39. h4 {[%emt 0:00:00]} Kf6 {[%emt 0:00:05]} 40. Rf2 {[%emt 0:00:00]} Rb1 {[%emt 0:00:00]} 41. Rd2 {[%emt 0:00:00]} Rc1 {[%emt 0:00:00]} 42. Bf3 {[%emt 0:00:00]} Rxc3+ {[%emt 0:00:00]} 43. Kf2 {[%emt 0:00:00]} g5 {[%emt 0:00:00]} 44. fxg5+ {[%emt 0:00:00]} hxg5 {[%emt 0:00:00]} 45. hxg5+ {[%emt 0:00:00]} Kxg5 {[%emt 0:00:00]} 46. Bd1 {[%emt 0:00:00]} Bxd5 {[%emt 0:00:00]} 0-1

[Event "15th Arad Open 2022"]
[Site "Arad"]
[Date "2022.08.09"]
[Round "2.7"]
[White "Capragiu, Matei-Stefan"]
[Black "Ionescu, Mihai"]
[Result "1/2-1/2"]
[ECO "E24"]
[WhiteElo "1925"]
[BlackElo "2250"]
[Annotator "RC"]
[PlyCount "70"]
[EventDate "2022.08.08"]
[EventType "swiss"]
[EventCountry "ROU"]
[SourceTitle "playchess.com"]
[Source "ChessBase"]
[SourceQuality "1"]
[TimeControl "5400+30"]

1. d4 {[%emt 0:00:15]} Nf6 {[%emt 0:00:23]} 2. c4 {[%emt 0:00:06]} e6 {[%emt 0:00:14]} 3. Nc3 {[%emt 0:00:08]} Bb4 {[%emt 1:31:23]} 4. a3 {[%emt 0:01:20]} Bxc3+ 5. bxc3 {[%emt 0:00:06]} Nc6 {[%emt 0:00:00]} 6. Bg5 {[%emt 0:00:58]} b6 {[%emt 0:00:00]} 7. Nf3 {[%emt 0:03:36]} Ba6 {[%emt 0:00:00]} 8. e4 {[%emt 0:00:29]} h6 {[%emt 0:00:00]} 9. Bh4 {[%emt 0:01:29]} g5 {[%emt 0:00:00]} 10. Nxg5 {[%emt 0:02:38]} hxg5 {[%emt 0:00:00]} 11. Bxg5 {[%emt 0:00:06]} Rg8 {[%emt 0:00:00]} 12. h4 {[%emt 0:00:32]} Rxg5 {[%emt 0:00:00]} 13. hxg5 {[%emt 0:00:22]} Ng8 {[%emt 0:00:00]} 14. Qg4 {[%emt 0:09:22]} Qe7 {[%emt 0:00:00]} 15. Rh7 {[%emt 0:03:35]} O-O-O {[%emt 0:00:00]} 16. e5 {[%emt 0:08:01]} Rf8 {[%emt 0:00:00]} 17. g6 {[%emt 0:08:42]} Nd8 {[%emt 0:00:00]} 18. Be2 {[%emt 0:11:53]} d5 {[%emt 0:00:00]} 19. cxd5 {[%emt 0:08:50]} Bxe2 {[%emt 0:00:00]} 20. Kxe2 {[%emt 0:02:58]} Qd7 {[%emt 0:00:00]} 21. a4 {[%emt 0:06:02]} Qxd5 {[%emt 0:00:00]} 22. gxf7 {[%emt 0:01:00]} Qc4+ {[%emt 0:00:00]} 23. Kd2 {[%emt 0:00:35]} Ne7 {[%emt 0:00:00]} 24. Qe2 {[%emt 0:02:47]} Qb3 {[%emt 0:00:00]} 25. Qb5 {[%emt 0:00:53]} Qd5 {[%emt 0:00:00]} 26. Qe8 {[%emt 0:06:14]} Ng6 {[%emt 0:00:00]} 27. Rg7 {[%emt 0:04:09]} Qxg2 {[%emt 0:00:00]} 28. Rxg6 {[%emt 0:00:30]} Qxf2+ {[%emt 0:00:00]} 29. Kc1 {[%emt 0:00:36]} Rxf7 {[%emt 0:00:00]} 30. Rf6 {[%emt 0:00:48]} Qg1+ {[%emt 0:01:08]} 31. Kb2 {[%emt 0:00:17]} Qg2+ {[%emt 0:00:10]} 32. Kb3 {[%emt 0:00:54]} Rd7 {[%emt 0:00:38]} 33. Raf1 {[%emt 0:07:49]} c5 {[%emt 0:01:11]} 34. Rf7 {[%emt 0:01:22]} Rxf7 {[%emt 0:04:18]} 35. Rxf7 {[%emt 0:00:19]} Qd5+ {[%emt 0:00:27]} 1/2-1/2

[Event "15th Arad Open 2022"]
[Site "Arad"]
[Date "2022.08.09"]
[Round "2.8"]
[White "Magold, Filip"]
[Black "Samu, Sorin-Mihai"]
[Result "1-0"]
[ECO "B45"]
[WhiteElo "2247"]
[BlackElo "1952"]
[Annotator "RC"]
[PlyCount "123"]
[EventDate "2022.08.08"]
[EventType "swiss"]
[EventCountry "ROU"]
[SourceTitle "playchess.com"]
[Source "ChessBase"]
[SourceQuality "1"]
[TimeControl "5400+30"]

1. e4 {[%emt 0:00:24]} c5 {[%emt 0:00:25]} 2. Nf3 {[%emt 0:00:08]} Nc6 {[%emt 0:00:14]} 3. d4 {[%emt 0:00:09]} cxd4 {[%emt 0:00:15]} 4. Nxd4 {[%emt 0:00:07]} Nf6 {[%emt 0:00:36]} 5. Nc3 {[%emt 0:00:06]} e6 {[%emt 0:00:43]} 6. Nxc6 bxc6 {[%emt 0:00:33]} 7. e5 {[%emt 0:00:28]} Nd5 {[%emt 0:00:54]} 8. Ne4 {[%emt 0:00:05]} f5 {[%emt 0:02:15]} 9. exf6 {[%emt 0:04:17]} Nxf6 {[%emt 0:01:26]} 10. Nd6+ {[%emt 0:07:35]} Bxd6 {[%emt 0:01:51]} 11. Qxd6 {[%emt 0:00:03]} Qb6 {[%emt 0:00:55]} 12. Bd3 {[%emt 0:04:29]} c5 {[%emt 0:05:57]} 13. Bf4 {[%emt 0:04:28]} Bb7 {[%emt 0:02:44]} 14. O-O {[%emt 0:14:52]} Qxd6 {[%emt 0:00:21]} 15. Bxd6 {[%emt 0:00:08]} Rc8 {[%emt 0:00:05]} 16. Rad1 {[%emt 0:05:04]} c4 {[%emt 0:02:24]} 17. Be2 {[%emt 0:00:05]} Bd5 {[%emt 0:02:48]} 18. Rd4 {[%emt 0:12:21]} Rc6 {[%emt 0:01:29]} 19. Ba3 {[%emt 0:01:18]} c3 {[%emt 0:01:14]} 20. b3 {[%emt 0:00:18]} Rc7 {[%emt 0:01:03]} 21. Ra4 {[%emt 0:04:47]} Kf7 {[%emt 0:00:38]} 22. Bd6 {[%emt 0:01:07]} Rb7 {[%emt 0:02:42]} 23. Be5 {[%emt 0:02:06]} Bc6 {[%emt 0:03:56]} 24. Ra5 {[%emt 0:01:30]} Nd5 {[%emt 0:02:28]} 25. Bh5+ {[%emt 0:03:51]} Ke7 {[%emt 0:02:05]} 26. Re1 {[%emt 0:07:03]} Rf8 {[%emt 0:02:03]} 27. Bf3 {[%emt 0:06:09]} Nb4 {[%emt 0:05:11]} 28. a3 {[%emt 0:03:39]} Nxc2 {[%emt 0:07:49]} 29. Rc1 {[%emt 0:00:14]} Rxb3 {[%emt 0:03:41]} 30. Bxc6 {[%emt 0:00:03]} dxc6 {[%emt 0:09:39]} 31. Rxa7+ {[%emt 0:00:04]} Ke8 {[%emt 0:00:18]} 32. g4 {[%emt 0:04:20]} Nxa3 {[%emt 0:02:14]} 33. Bd6 {[%emt 0:00:20]} Rf3 {[%emt 0:03:50]} 34. Rxa3 {[%emt 0:00:51]} Rxa3 {[%emt 0:02:12]} 35. Bxa3 {[%emt 0:00:05]} Kd7 {[%emt 0:01:20]} 36. Bb4 {[%emt 0:01:30]} Rf4 {[%emt 0:00:26]} 37. Bxc3 {[%emt 0:00:06]} Rxg4+ {[%emt 0:00:12]} 38. Kf1 {[%emt 0:00:02]} c5 {[%emt 0:00:16]} 39. Rd1+ {[%emt 0:01:41]} Ke7 {[%emt 0:00:53]} 40. Be5 {[%emt 0:00:00]} Rg5 {[%emt 0:00:00]} 41. Bd6+ {[%emt 0:00:00]} Kf6 {[%emt 0:00:00]} 42. Rc1 {[%emt 0:00:00]} Rd5 {[%emt 0:00:00]} 43. Bxc5 {[%emt 0:00:00]} g5 {[%emt 0:00:00]} 44. Be3 {[%emt 0:00:00]} h6 {[%emt 0:00:00]} 45. Rc7 {[%emt 0:00:00]} h5 {[%emt 0:00:00]} 46. Kg2 {[%emt 0:00:00]} Kg6 {[%emt 0:00:00]} 47. Kg3 {[%emt 0:00:00]} Rf5 {[%emt 0:00:00]} 48. Rc8 {[%emt 0:00:00]} Kg7 {[%emt 0:00:00]} 49. Re8 {[%emt 0:00:00]} Kf7 {[%emt 0:00:00]} 50. Rh8 {[%emt 0:00:00]} Kg6 {[%emt 0:00:00]} 51. h4 {[%emt 0:00:00]} g4 {[%emt 0:00:00]} 52. Rh6+ {[%emt 0:00:00]} Kf7 {[%emt 0:00:00]} 53. Bg5 {[%emt 0:00:00]} Rf3+ {[%emt 0:00:00]} 54. Kg2 {[%emt 0:00:00]} Rh3 {[%emt 0:00:00]} 55. Rxh5 {[%emt 0:00:00]} e5 {[%emt 0:00:00]} 56. Rh7+ {[%emt 0:00:00]} Kg6 {[%emt 0:00:00]} 57. Rh6+ {[%emt 0:00:00]} Kf5 {[%emt 0:00:00]} 58. Be3 {[%emt 0:00:00]} Ke4 {[%emt 0:00:00]} 59. h5 {[%emt 0:00:00]} Kf5 {[%emt 0:00:00]} 60. Rh8 {[%emt 0:00:00]} e4 {[%emt 0:00:00]} 61. h6 {[%emt 0:00:00]} Rf3 {[%emt 0:00:00]} 62. Rg8 {[%emt 0:00:00]} 1-0

[Event "15th Arad Open 2022"]
[Site "Arad"]
[Date "2022.08.09"]
[Round "2.9"]
[White "Padurean, Daniel-Cristian"]
[Black "Ciocani, Iosif"]
[Result "0-1"]
[ECO "B22"]
[WhiteElo "2126"]
[BlackElo "2012"]
[Annotator "RC"]
[PlyCount "58"]
[EventDate "2022.08.08"]
[EventType "swiss"]
[EventCountry "ROU"]
[SourceTitle "playchess.com"]
[Source "ChessBase"]
[SourceQuality "1"]
[TimeControl "5400+30"]

1. e4 {[%emt 0:00:02]} c5 {[%emt 0:00:07]} 2. c3 {[%emt 0:00:09]} Nf6 {[%emt 0:00:08]} 3. e5 {[%emt 0:00:10]} Nd5 {[%emt 0:00:05]} 4. d4 {[%emt 0:00:04]} cxd4 {[%emt 0:00:06]} 5. Nf3 {[%emt 0:00:04]} d6 {[%emt 0:00:26]} 6. cxd4 {[%emt 0:00:05]} Nc6 {[%emt 0:00:05]} 7. Bc4 {[%emt 1:33:26]} dxe5 8. dxe5 {[%emt 0:00:00]} Be6 {[%emt 0:03:20]} 9. O-O {[%emt 0:00:00]} g6 {[%emt 0:00:08]} 10. Qb3 {[%emt 0:00:00]} Qd7 {[%emt 0:03:24]} 11. Rd1 {[%emt 0:00:00]} Na5 {[%emt 0:02:39]} 12. Bxd5 {[%emt 0:00:00]} Nxb3 {[%emt 0:04:10]} 13. Bxb3 {[%emt 0:00:00]} Qc6 {[%emt 0:07:13]} 14. Nc3 {[%emt 0:00:00]} Bxb3 {[%emt 0:00:30]} 15. axb3 {[%emt 0:00:00]} Bg7 {[%emt 0:02:43]} 16. Nd4 {[%emt 0:00:00]} Qc8 {[%emt 0:08:51]} 17. Nd5 {[%emt 0:00:00]} Qc5 {[%emt 0:15:04]} 18. Nf3 {[%emt 0:00:00]} Rd8 {[%emt 0:10:32]} 19. Be3 {[%emt 0:00:00]} Qc6 {[%emt 0:01:23]} 20. Nb4 {[%emt 0:00:00]} Rxd1+ {[%emt 0:00:20]} 21. Rxd1 {[%emt 0:00:00]} Qe6 {[%emt 0:00:53]} 22. Nd5 {[%emt 0:00:00]} O-O {[%emt 0:00:47]} 23. Ng5 {[%emt 0:02:28]} Qxe5 {[%emt 0:01:58]} 24. f4 {[%emt 0:00:06]} Qd6 {[%emt 0:07:13]} 25. Ne4 {[%emt 0:00:37]} Qa6 {[%emt 0:05:11]} 26. Nxe7+ {[%emt 0:00:05]} Kh8 {[%emt 0:00:05]} 27. Bc5 {[%emt 0:06:01]} Qe2 {[%emt 0:01:04]} 28. Nf2 {[%emt 0:00:03]} Re8 {[%emt 0:00:24]} 29. Rc1 {[%emt 0:01:00]} Rxe7 {[%emt 0:26:11]} 0-1

[Event "15th Arad Open 2022"]
[Site "Arad"]
[Date "2022.08.09"]
[Round "2.10"]
[White "Donici-Maier, David"]
[Black "Kazarian, Anna-Maja"]
[Result "1-0"]
[ECO "C06"]
[WhiteElo "1786"]
[BlackElo "2139"]
[Annotator "RC"]
[PlyCount "155"]
[EventDate "2022.08.08"]
[EventType "swiss"]
[EventCountry "ROU"]
[SourceTitle "playchess.com"]
[Source "ChessBase"]
[SourceQuality "1"]
[TimeControl "5400+30"]

1. e4 {[%emt 0:00:04]} e6 {[%emt 0:00:08]} 2. d4 {[%emt 0:00:11]} d5 {[%emt 0:00:04]} 3. Nd2 {[%emt 0:00:11]} Be7 {[%emt 0:02:27]} 4. Ngf3 {[%emt 0:02:02]} Nf6 {[%emt 0:01:12]} 5. e5 {[%emt 0:00:51]} Nfd7 {[%emt 0:00:06]} 6. Bd3 {[%emt 0:01:38]} c5 {[%emt 0:00:05]} 7. c3 {[%emt 0:00:07]} Nc6 {[%emt 0:00:04]} 8. Bc2 {[%emt 0:02:25]} f6 {[%emt 0:04:42]} 9. exf6 {[%emt 0:02:08]} Bxf6 {[%emt 0:00:38]} 10. Nb3 {[%emt 0:02:19]} c4 {[%emt 0:09:48]} 11. Nbd2 {[%emt 0:04:45]} e5 {[%emt 0:03:38]} 12. dxe5 {[%emt 0:06:12]} Ndxe5 {[%emt 0:00:07]} 13. h3 {[%emt 0:09:57]} O-O {[%emt 0:04:02]} 14. O-O {[%emt 0:01:53]} Be6 {[%emt 0:09:36]} 15. Nxe5 {[%emt 0:06:38]} Nxe5 {[%emt 0:08:16]} 16. Nf3 {[%emt 0:04:03]} Nc6 {[%emt 0:01:28]} 17. Be3 {[%emt 0:08:53]} Qd7 {[%emt 0:05:23]} 18. Nd4 {[%emt 0:03:55]} Bxd4 {[%emt 0:01:23]} 19. Bxd4 {[%emt 0:02:42]} Bf5 {[%emt 0:11:06]} 20. Bxf5 {[%emt 0:04:52]} Qxf5 {[%emt 0:00:23]} 21. Qd2 {[%emt 0:00:47]} Rae8 {[%emt 0:05:17]} 22. Rae1 {[%emt 0:02:35]} b6 {[%emt 0:19:32]} 23. Re3 {[%emt 0:05:21]} Rxe3 {[%emt 0:03:15]} 24. Qxe3 {[%emt 0:00:56]} Nxd4 {[%emt 0:06:36]} 25. Qxd4 {[%emt 0:00:14]} Re8 {[%emt 0:00:07]} 26. b3 {[%emt 0:07:55]} Re4 {[%emt 0:02:20]} 27. Qd2 {[%emt 0:00:26]} cxb3 {[%emt 0:01:16]} 28. axb3 {[%emt 0:00:13]} Qe5 {[%emt 0:00:39]} 29. Rd1 {[%emt 0:01:45]} Kf8 {[%emt 0:00:19]} 30. g3 {[%emt 0:08:39]} Ke7 {[%emt 0:00:58]} 31. Kg2 {[%emt 0:03:30]} Ke6 {[%emt 0:00:31]} 32. Qd3 {[%emt 0:00:50]} g6 {[%emt 0:00:31]} 33. Qb5 {[%emt 0:01:36]} Kd6 {[%emt 0:00:27]} 34. Rd3 {[%emt 0:04:25]} Re2 {[%emt 0:00:33]} 35. Rf3 {[%emt 0:01:39]} Qe4 {[%emt 0:00:24]} 36. Qa6 {[%emt 0:00:52]} Rc2 {[%emt 0:00:35]} 37. Qxa7 {[%emt 0:00:31]} Rxc3 {[%emt 0:01:04]} 38. Qxb6+ {[%emt 0:00:09]} Rc6 {[%emt 0:00:00]} 39. Qd8+ {[%emt 0:01:10]} Kc5 {[%emt 0:00:09]} 40. Qf8+ {[%emt 0:00:00]} Kb5 {[%emt 0:00:00]} 41. Kh2 {[%emt 0:00:00]} d4 {[%emt 0:00:00]} 42. Rf4 {[%emt 0:00:00]} Qd5 {[%emt 0:00:00]} 43. Qa3 {[%emt 0:00:00]} Ra6 {[%emt 0:00:13]} 44. Qb2 {[%emt 0:00:00]} Rd6 {[%emt 0:01:09]} 45. Qd2 {[%emt 0:00:00]} Kc6 {[%emt 0:01:51]} 46. Qd3 {[%emt 0:00:00]} Qb5 {[%emt 0:00:35]} 47. Qe4+ {[%emt 0:00:00]} Kc5 {[%emt 0:00:01]} 48. Rf8 {[%emt 0:00:50]} Kb4 {[%emt 0:00:56]} 49. Rc8 {[%emt 0:03:29]} Rd5 {[%emt 0:00:33]} 50. Qe1+ {[%emt 0:00:41]} Ka3 {[%emt 0:00:25]} 51. Qc1+ {[%emt 0:00:56]} Kb4 {[%emt 0:00:27]} 52. Qe1+ {[%emt 0:00:40]} Ka3 {[%emt 0:00:12]} 53. Qa1+ {[%emt 0:00:27]} Kb4 {[%emt 0:00:17]} 54. Rc4+ {[%emt 0:00:34]} Kxb3 {[%emt 0:01:10]} 55. Rc1 {[%emt 0:00:25]} Qd3 {[%emt 0:00:31]} 56. Rb1+ {[%emt 0:00:26]} Qxb1 {[%emt 0:00:29]} 57. Qxb1+ {[%emt 0:00:05]} Kc3 {[%emt 0:00:02]} 58. Qc1+ {[%emt 0:00:11]} Kb4 {[%emt 0:00:27]} 59. Qb2+ {[%emt 0:00:25]} Kc5 {[%emt 0:00:44]} 60. Qc2+ {[%emt 0:00:15]} Kd6 {[%emt 0:00:03]} 61. Qd3 {[%emt 0:00:07]} Kc5 {[%emt 0:00:32]} 62. Kg2 {[%emt 0:00:12]} Rf5 {[%emt 0:00:57]} 63. f4 {[%emt 0:01:27]} Rf6 {[%emt 0:00:32]} 64. Qc2+ {[%emt 0:00:37]} Kd5 {[%emt 0:00:14]} 65. Qb3+ {[%emt 0:00:14]} Kc5 {[%emt 0:00:28]} 66. Kf3 {[%emt 0:00:33]} Rb6 {[%emt 0:00:16]} 67. Qa3+ {[%emt 0:00:58]} Kc4 {[%emt 0:01:10]} 68. Qa4+ {[%emt 0:00:57]} Rb4 {[%emt 0:00:31]} 69. Qc2+ {[%emt 0:00:27]} Kd5 {[%emt 0:00:14]} 70. Qe4+ {[%emt 0:00:34]} Kc4 {[%emt 0:00:19]} 71. Qc6+ {[%emt 0:00:34]} Kd3 {[%emt 0:00:09]} 72. Qa6+ {[%emt 0:00:29]} Rc4 {[%emt 0:01:22]} 73. g4 {[%emt 0:00:32]} Kc3 {[%emt 0:00:20]} 74. Qa3+ {[%emt 0:00:27]} Kd2 {[%emt 0:00:02]} 75. Qb2+ {[%emt 0:00:18]} Kd3 {[%emt 0:00:27]} 76. f5 {[%emt 0:00:19]} gxf5 {[%emt 0:00:06]} 77. gxf5 {[%emt 0:00:05]} Rc3 {[%emt 0:00:54]} 78. Qe2# {[%emt 0:00:07]} 1-0

[Event "15th Arad Open 2022"]
[Site "Arad"]
[Date "2022.08.09"]
[Round "2.11"]
[White "Ghita, Vlad-Bogdan"]
[Black "Ionescu, Irina"]
[Result "0-1"]
[ECO "B01"]
[WhiteElo "1944"]
[BlackElo "2125"]
[Annotator "RC"]
[PlyCount "60"]
[EventDate "2022.08.08"]
[EventType "swiss"]
[EventCountry "ROU"]
[SourceTitle "playchess.com"]
[Source "ChessBase"]
[SourceQuality "1"]
[TimeControl "5400+30"]

1. e4 {[%emt 0:00:05]} d5 {[%emt 0:00:24]} 2. exd5 {[%emt 0:00:07]} Qxd5 {[%emt 0:00:05]} 3. Nf3 {[%emt 0:01:05]} Bg4 {[%emt 0:02:22]} 4. Be2 {[%emt 0:00:07]} Nc6 {[%emt 0:00:49]} 5. d4 {[%emt 0:00:07]} e6 {[%emt 0:01:27]} 6. O-O {[%emt 0:00:19]} O-O-O {[%emt 0:00:29]} 7. c4 {[%emt 0:00:20]} Qd7 {[%emt 0:00:53]} 8. Be3 {[%emt 0:00:30]} Bxf3 {[%emt 0:05:06]} 9. Bxf3 {[%emt 0:00:05]} Nxd4 {[%emt 0:00:07]} 10. Nc3 {[%emt 0:00:03]} Nf6 {[%emt 0:03:23]} 11. Bxd4 Qxd4 {[%emt 0:01:23]} 12. Qb3 {[%emt 0:01:13]} Qb6 {[%emt 0:01:29]} 13. Qc2 {[%emt 0:00:03]} c6 {[%emt 0:07:10]} 14. a3 {[%emt 0:00:17]} g5 {[%emt 0:00:36]} 15. g3 {[%emt 0:00:23]} g4 {[%emt 0:01:29]} 16. Bg2 {[%emt 0:00:05]} Bh6 {[%emt 0:15:16]} 17. b4 {[%emt 0:00:53]} Rd2 {[%emt 0:01:20]} 18. Qc1 {[%emt 0:02:13]} Qd4 {[%emt 0:04:59]} 19. b5 {[%emt 0:10:15]} c5 {[%emt 0:11:46]} 20. b6 {[%emt 0:00:45]} a6 {[%emt 0:00:26]} 21. Na4 {[%emt 0:00:14]} Rxf2 {[%emt 0:03:13]} 22. Qxh6 {[%emt 0:01:12]} Rxf1+ {[%emt 0:00:07]} 23. Kxf1 {[%emt 0:00:01]} Qxa1+ {[%emt 0:00:08]} 24. Kf2 {[%emt 0:00:03]} Rd8 {[%emt 0:01:43]} 25. Qf4 {[%emt 0:00:32]} Qd4+ {[%emt 0:10:59]} 26. Qxd4 {[%emt 0:00:24]} Rxd4 {[%emt 0:00:06]} 27. Nxc5 {[%emt 0:00:15]} Rxc4 {[%emt 0:00:17]} 28. Nxb7 {[%emt 0:00:05]} Rc2+ {[%emt 0:00:31]} 29. Kf1 {[%emt 0:00:03]} Rxg2 {[%emt 0:01:05]} 30. Nd6+ {[%emt 0:00:04]} Kd7 {[%emt 0:00:05]} 0-1

[Event "15th Arad Open 2022"]
[Site "Arad"]
[Date "2022.08.09"]
[Round "2.12"]
[White "Tampea, Radu"]
[Black "Tamas, Christian-Arrydan"]
[Result "1/2-1/2"]
[ECO "A45"]
[WhiteElo "2093"]
[BlackElo "1913"]
[Annotator "RC"]
[PlyCount "100"]
[EventDate "2022.08.08"]
[EventType "swiss"]
[EventCountry "ROU"]
[SourceTitle "playchess.com"]
[Source "ChessBase"]
[SourceQuality "1"]
[TimeControl "5400+30"]

1. d4 {[%emt 0:00:22]} Nf6 {[%emt 0:00:27]} 2. Bf4 {[%emt 0:01:56]} g6 {[%emt 0:00:36]} 3. Nc3 {[%emt 0:00:44]} d5 {[%emt 0:00:15]} 4. e3 {[%emt 0:00:37]} Bg7 {[%emt 0:00:48]} 5. h4 {[%emt 0:00:45]} h5 {[%emt 0:00:09]} 6. Nf3 {[%emt 0:00:33]} O-O {[%emt 0:01:29]} 7. Qd2 {[%emt 0:00:35]} Ne4 {[%emt 0:05:12]} 8. Nxe4 dxe4 {[%emt 0:00:09]} 9. Ng5 {[%emt 0:10:16]} Bf5 {[%emt 0:00:59]} 10. Be2 {[%emt 0:24:03]} c5 {[%emt 0:12:46]} 11. c3 {[%emt 0:01:25]} cxd4 {[%emt 0:01:16]} 12. exd4 {[%emt 0:04:18]} Nd7 {[%emt 0:02:58]} 13. Qe3 {[%emt 0:17:21]} Qb6 {[%emt 0:03:50]} 14. O-O {[%emt 0:02:43]} e5 {[%emt 0:01:19]} 15. dxe5 {[%emt 0:00:58]} Qxe3 {[%emt 0:00:16]} 16. Bxe3 {[%emt 0:01:35]} Nxe5 {[%emt 0:00:10]} 17. f3 {[%emt 0:03:58]} exf3 {[%emt 0:02:21]} 18. Nxf3 {[%emt 0:00:14]} Rfe8 {[%emt 0:07:53]} 19. Bd4 {[%emt 0:09:55]} Nxf3+ 20. Bxf3 {[%emt 0:00:06]} Bxd4+ 21. cxd4 {[%emt 0:00:01]} Be4 {[%emt 0:02:54]} 22. Kf2 {[%emt 0:02:18]} Rad8 {[%emt 0:02:43]} 23. Rad1 {[%emt 0:00:33]} Bxf3 24. gxf3 {[%emt 0:01:23]} Re6 {[%emt 0:06:49]} 25. Rd2 {[%emt 0:02:21]} Rf6 {[%emt 0:02:23]} 26. Re1 {[%emt 0:00:58]} Kf8 {[%emt 0:00:43]} 27. Rd3 {[%emt 0:01:25]} Rfd6 {[%emt 0:00:39]} 28. Red1 {[%emt 0:00:38]} Ra6 {[%emt 0:04:19]} 29. a3 {[%emt 0:01:06]} Rc6 {[%emt 0:00:26]} 30. Rc3 {[%emt 0:03:41]} Rxc3 {[%emt 0:01:59]} 31. bxc3 {[%emt 0:00:02]} Rc8 {[%emt 0:00:11]} 32. Rc1 {[%emt 0:03:08]} Rc4 {[%emt 0:00:08]} 33. Ke2 {[%emt 0:00:54]} b5 {[%emt 0:00:18]} 34. Kd3 {[%emt 0:01:14]} Ra4 {[%emt 0:00:28]} 35. Ra1 {[%emt 0:03:48]} Ke7 {[%emt 0:00:22]} 36. Kc2 {[%emt 0:00:08]} Kd7 {[%emt 0:00:14]} 37. Kb3 {[%emt 0:00:10]} Ra6 {[%emt 0:01:46]} 38. Kb4 {[%emt 0:00:16]} Rc6 {[%emt 0:00:18]} 39. a4 {[%emt 0:01:34]} Rc4+ {[%emt 0:02:04]} 40. Kxb5 {[%emt 0:00:00]} Rxc3 {[%emt 0:00:00]} 41. Ka6 {[%emt 0:00:00]} Rd3 {[%emt 0:00:00]} 42. Kxa7 {[%emt 0:00:00]} Rxd4 {[%emt 0:00:00]} 43. a5 {[%emt 0:00:00]} Rxh4 {[%emt 0:00:00]} 44. Kb6 {[%emt 0:00:00]} Rb4+ {[%emt 0:00:00]} 45. Kc5 {[%emt 0:00:00]} Rb8 {[%emt 0:00:00]} 46. a6 {[%emt 0:00:00]} Kc7 {[%emt 0:00:27]} 47. Re1 {[%emt 0:00:00]} Rh8 {[%emt 0:02:09]} 48. Re7+ {[%emt 0:00:00]} Kb8 {[%emt 0:00:09]} 49. Kb6 {[%emt 0:00:00]} h4 {[%emt 0:00:10]} 50. Rb7+ {[%emt 0:00:00]} Ka8 {[%emt 0:00:06]} 1/2-1/2

[Event "15th Arad Open 2022"]
[Site "Arad"]
[Date "2022.08.09"]
[Round "2.13"]
[White "Magold, Victor"]
[Black "Panc, Samuel"]
[Result "1-0"]
[ECO "A84"]
[WhiteElo "2074"]
[BlackElo "1927"]
[Annotator "RC"]
[PlyCount "37"]
[EventDate "2022.08.08"]
[EventType "swiss"]
[EventCountry "ROU"]
[SourceTitle "playchess.com"]
[Source "ChessBase"]
[SourceQuality "1"]
[TimeControl "5400+30"]

1. d4 {[%emt 0:00:04]} f5 {[%emt 0:03:24]} 2. c4 {[%emt 0:00:13]} Nf6 {[%emt 0:00:06]} 3. Nf3 {[%emt 0:00:05]} e6 {[%emt 0:00:07]} 4. Bf4 {[%emt 0:01:24]} d6 {[%emt 0:04:28]} 5. Nc3 {[%emt 0:00:16]} g6 {[%emt 0:03:17]} 6. g3 {[%emt 0:00:46]} Bg7 {[%emt 0:00:36]} 7. Bg2 {[%emt 0:00:07]} O-O {[%emt 0:00:19]} 8. O-O {[%emt 0:00:21]} Nbd7 {[%emt 0:01:42]} 9. Qc2 {[%emt 0:08:27]} h6 {[%emt 0:03:58]} 10. Rad1 {[%emt 0:06:12]} Qe7 {[%emt 0:07:17]} 11. e4 {[%emt 0:07:09]} e5 {[%emt 0:03:04]} 12. dxe5 {[%emt 0:00:12]} Nxe5 {[%emt 0:01:12]} 13. c5 {[%emt 0:06:20]} fxe4 {[%emt 0:11:54]} 14. cxd6 {[%emt 0:00:09]} cxd6 {[%emt 0:00:10]} 15. Bxe5 {[%emt 0:14:03]} dxe5 {[%emt 0:00:07]} 16. Nh4 {[%emt 0:04:12]} Kh7 {[%emt 0:06:22]} 17. Nxe4 {[%emt 0:16:28]} Bg4 {[%emt 0:05:56]} 18. Nd6 e4 {[%emt 0:00:30]} 19. Rd2 1-0